[Event "Late-Titled-Tuesday-Blitz-February-06-2024"]
[Site "Chess.com"]
[Date "2024.02.06"]
[Round "10"]
[White "Ready4abattle"]
[Black "PawnEatingZombie"]
[Result "0-1"]
[WhiteElo "2302"]
[BlackElo "2210"]
[TimeControl "180+1"]
[EndTime "15:55:05 PST"]
[Termination "PawnEatingZombie won on time"]

1. e4 {[%clk 0:03:00.9]} 1... d6 {[%clk 0:02:58]} 2. d4 {[%clk 0:02:59.4]} 2...
Nf6 {[%clk 0:02:58.5]} 3. Nc3 {[%clk 0:02:59.7]} 3... e5 {[%clk 0:02:58.3]} 4.
Nf3 {[%clk 0:02:59.1]} 4... Nbd7 {[%clk 0:02:57.8]} 5. Bc4 {[%clk 0:02:59.1]}
5... Be7 {[%clk 0:02:58.2]} 6. O-O {[%clk 0:02:59.2]} 6... O-O {[%clk
0:02:58.3]} 7. a4 {[%clk 0:02:59.5]} 7... a5 {[%clk 0:02:56.4]} 8. Ba2 {[%clk
0:02:58.6]} 8... c6 {[%clk 0:02:56.7]} 9. Re1 {[%clk 0:02:55.6]} 9... h6 {[%clk
0:02:56.7]} 10. Nh4 {[%clk 0:02:53.7]} 10... Re8 {[%clk 0:02:55]} 11. Nf5 {[%clk
0:02:51.2]} 11... Bf8 {[%clk 0:02:38.4]} 12. dxe5 {[%clk 0:02:49.7]} 12... dxe5
{[%clk 0:02:29.2]} 13. Qf3 {[%clk 0:02:47.8]} 13... Nc5 {[%clk 0:02:05.5]} 14.
Be3 {[%clk 0:02:29.9]} 14... Bxf5 {[%clk 0:02:03.6]} 15. Qxf5 {[%clk 0:02:18.9]}
15... Qc8 {[%clk 0:01:50.9]} 16. Qf3 {[%clk 0:02:13.2]} 16... Qg4 {[%clk
0:01:47]} 17. Qxg4 {[%clk 0:01:38.6]} 17... Nxg4 {[%clk 0:01:47.9]} 18. Bd2
{[%clk 0:01:32.9]} 18... Ne6 {[%clk 0:01:39.9]} 19. f3 {[%clk 0:01:33.1]} 19...
Bc5+ {[%clk 0:01:33.8]} 20. Kf1 {[%clk 0:01:22.6]} 20... Nf6 {[%clk 0:01:20]}
21. Bxe6 {[%clk 0:01:14.9]} 21... Rxe6 {[%clk 0:01:19.4]} 22. Be3 {[%clk
0:01:15.8]} 22... Bxe3 {[%clk 0:01:15.7]} 23. Rxe3 {[%clk 0:01:16.7]} 23... Rd6
{[%clk 0:01:13.9]} 24. Rd1 {[%clk 0:01:14.1]} 24... Rad8 {[%clk 0:01:05.2]} 25.
Rxd6 {[%clk 0:01:10.3]} 25... Rxd6 {[%clk 0:01:04.6]} 26. Ke2 {[%clk 0:01:11.2]}
26... Nd7 {[%clk 0:01:01.6]} 27. Rd3 {[%clk 0:01:05.5]} 27... Rxd3 {[%clk
0:01:00.5]} 28. Kxd3 {[%clk 0:01:06.4]} 28... Kf8 {[%clk 0:00:59.9]} 29. Kc4
{[%clk 0:01:05.8]} 29... Ke7 {[%clk 0:00:58.8]} 30. Nd1 {[%clk 0:00:56.7]} 30...
Kd6 {[%clk 0:00:55.8]} 31. b3 {[%clk 0:00:56.3]} 31... Nf8 {[%clk 0:00:49.7]}
32. Ne3 {[%clk 0:00:56.4]} 32... g6 {[%clk 0:00:47.7]} 33. Kd3 {[%clk
0:00:54.9]} 33... b5 {[%clk 0:00:42.5]} 34. g3 {[%clk 0:00:49.1]} 34... Ne6
{[%clk 0:00:41.9]} 35. axb5 {[%clk 0:00:37.1]} 35... cxb5 {[%clk 0:00:42.8]} 36.
Nd5 {[%clk 0:00:36.4]} 36... f5 {[%clk 0:00:35.1]} 37. Nc3 {[%clk 0:00:35.9]}
37... Kc5 {[%clk 0:00:32.1]} 38. exf5 {[%clk 0:00:33]} 38... gxf5 {[%clk
0:00:31.7]} 39. Ne2 {[%clk 0:00:25.7]} 39... a4 {[%clk 0:00:28.6]} 40. bxa4
{[%clk 0:00:26.6]} 40... bxa4 {[%clk 0:00:28.8]} 41. Kc3 {[%clk 0:00:27.3]}
41... Nd4 {[%clk 0:00:25.9]} 42. Nc1 {[%clk 0:00:20.3]} 42... Nxf3 {[%clk
0:00:23.1]} 43. Nd3+ {[%clk 0:00:20.8]} 43... Kd5 {[%clk 0:00:21.9]} 44. Kb4
{[%clk 0:00:20.6]} 44... Nxh2 {[%clk 0:00:20.9]} 45. c4+ {[%clk 0:00:18.2]}
45... Kd4 {[%clk 0:00:20.4]} 46. c5 {[%clk 0:00:17.8]} 46... Ng4 {[%clk
0:00:15.4]} 47. c6 {[%clk 0:00:16.2]} 47... Nf6 {[%clk 0:00:15.7]} 48. Nf2
{[%clk 0:00:10.2]} 48... Nd5+ {[%clk 0:00:15.3]} 49. Kb5 {[%clk 0:00:10.4]}
49... e4 {[%clk 0:00:14]} 50. Kxa4 {[%clk 0:00:07.1]} 50... e3 {[%clk 0:00:13]}
0-1

[Event "Late-Titled-Tuesday-Blitz-February-06-2024"]
[Site "Chess.com"]
[Date "2024.02.06"]
[Round "10"]
[White "platy3"]
[Black "iwanyu"]
[Result "0-1"]
[WhiteElo "2932"]
[BlackElo "2856"]
[TimeControl "180+1"]
[EndTime "15:55:06 PST"]
[Termination "iwanyu won by resignation"]

1. e4 {[%clk 0:02:59.3]} 1... c5 {[%clk 0:02:58.4]} 2. Nf3 {[%clk 0:02:58.6]}
2... a6 {[%clk 0:02:59]} 3. g3 {[%clk 0:02:58.4]} 3... Nc6 {[%clk 0:02:58.7]} 4.
Bg2 {[%clk 0:02:58.3]} 4... e5 {[%clk 0:02:59]} 5. O-O {[%clk 0:02:57.3]} 5...
g6 {[%clk 0:02:58.5]} 6. c3 {[%clk 0:02:49]} 6... Bg7 {[%clk 0:02:58.6]} 7. d4
{[%clk 0:02:49.5]} 7... cxd4 {[%clk 0:02:59.1]} 8. cxd4 {[%clk 0:02:49.5]} 8...
exd4 {[%clk 0:02:59.6]} 9. Bf4 {[%clk 0:02:49.1]} 9... d6 {[%clk 0:02:59.9]} 10.
Nbd2 {[%clk 0:02:47.7]} 10... Nge7 {[%clk 0:02:55.1]} 11. Nc4 {[%clk 0:02:47]}
11... O-O {[%clk 0:02:53.2]} 12. Nxd6 {[%clk 0:02:43.5]} 12... Be6 {[%clk
0:02:46.5]} 13. Ng5 {[%clk 0:02:30.2]} 13... Qd7 {[%clk 0:02:31.4]} 14. Nxe6
{[%clk 0:02:23.2]} 14... fxe6 {[%clk 0:02:32.3]} 15. Nc4 {[%clk 0:02:22.3]}
15... Rxf4 {[%clk 0:02:28.6]} 16. gxf4 {[%clk 0:02:18.1]} 16... Rf8 {[%clk
0:02:28.5]} 17. Qg4 {[%clk 0:02:15.3]} 17... Bh6 {[%clk 0:02:24.6]} 18. Nb6
{[%clk 0:02:09]} 18... Qd6 {[%clk 0:01:59.7]} 19. Nc4 {[%clk 0:01:43.6]} 19...
Qxf4 {[%clk 0:01:56.4]} 20. Qxe6+ {[%clk 0:01:42.4]} 20... Kg7 {[%clk
0:01:53.5]} 21. e5 {[%clk 0:01:16.9]} 21... Nf5 {[%clk 0:01:52.6]} 22. Qd7+
{[%clk 0:00:41.1]} 22... Rf7 {[%clk 0:01:48.1]} 23. Qd5 {[%clk 0:00:41.3]} 23...
Nh4 {[%clk 0:01:26.1]} 24. Rae1 {[%clk 0:00:41]} 24... Qg5 {[%clk 0:01:12]} 25.
f4 {[%clk 0:00:30.2]} 25... Qg4 {[%clk 0:01:07.6]} 26. e6 {[%clk 0:00:05.7]}
26... Rf5 {[%clk 0:01:03.7]} 27. Qe4 {[%clk 0:00:02.7]} 27... Bxf4 {[%clk
0:00:59.7]} 28. e7 {[%clk 0:00:02.7]} 28... Nxe7 {[%clk 0:00:57]} 29. Qxe7+
{[%clk 0:00:02.7]} 29... Kh6 {[%clk 0:00:48.5]} 30. Qxb7 {[%clk 0:00:02.9]}
30... Rg5 {[%clk 0:00:35.1]} 31. Rf2 {[%clk 0:00:02.7]} 31... Be3 {[%clk
0:00:21.2]} 32. Nxe3 {[%clk 0:00:02.5]} 32... dxe3 {[%clk 0:00:21.6]} 33. Rxe3
{[%clk 0:00:02.4]} 33... Qd1+ {[%clk 0:00:21.8]} 34. Rf1 {[%clk 0:00:03]} 34...
Qd4 {[%clk 0:00:21.9]} 35. Qe7 {[%clk 0:00:01.4]} 35... Nxg2 {[%clk 0:00:10.4]}
36. Qf8+ {[%clk 0:00:01.6]} 36... Kh5 {[%clk 0:00:10.5]} 37. Qf3+ {[%clk
0:00:02.3]} 37... Rg4 {[%clk 0:00:10.6]} 38. h3 {[%clk 0:00:02]} 38... Nxe3+
{[%clk 0:00:09.1]} 39. hxg4+ {[%clk 0:00:02.5]} 39... Nxg4+ {[%clk 0:00:10]} 40.
Kg2 {[%clk 0:00:02.7]} 40... Qd2+ {[%clk 0:00:09.8]} 41. Rf2 {[%clk 0:00:02.2]}
41... Qxf2+ {[%clk 0:00:09.9]} 42. Qxf2 {[%clk 0:00:02.9]} 42... Nxf2 {[%clk
0:00:10]} 43. Kxf2 {[%clk 0:00:03.8]} 43... Kg5 {[%clk 0:00:10.5]} 44. b4 {[%clk
0:00:04.5]} 44... Kf5 {[%clk 0:00:10.8]} 45. a4 {[%clk 0:00:05.2]} 45... Ke5
{[%clk 0:00:11.3]} 46. Ke3 {[%clk 0:00:03.6]} 46... Kd5 {[%clk 0:00:11.6]} 47.
Kd3 {[%clk 0:00:03.5]} 47... g5 {[%clk 0:00:11.3]} 0-1

[Event "Late-Titled-Tuesday-Blitz-February-06-2024"]
[Site "Chess.com"]
[Date "2024.02.06"]
[Round "10"]
[White "babero_gordo"]
[Black "BelaKis"]
[Result "1-0"]
[WhiteElo "2120"]
[BlackElo "2223"]
[TimeControl "180+1"]
[EndTime "15:55:06 PST"]
[Termination "babero_gordo won on time"]

1. e4 {[%clk 0:03:00.9]} 1... g6 {[%clk 0:02:58.2]} 2. f4 {[%clk 0:02:59.9]}
2... Bg7 {[%clk 0:02:58.1]} 3. Nf3 {[%clk 0:03:00.1]} 3... c6 {[%clk 0:02:58.7]}
4. Nc3 {[%clk 0:02:56.8]} 4... d5 {[%clk 0:02:59.2]} 5. exd5 {[%clk 0:02:51.3]}
5... cxd5 {[%clk 0:02:58.6]} 6. d4 {[%clk 0:02:51.8]} 6... Nf6 {[%clk
0:02:54.3]} 7. Ne5 {[%clk 0:02:44.2]} 7... O-O {[%clk 0:02:54]} 8. Be2 {[%clk
0:02:43.2]} 8... Nc6 {[%clk 0:02:39.5]} 9. O-O {[%clk 0:02:40.3]} 9... Bf5
{[%clk 0:02:29.3]} 10. h3 {[%clk 0:02:26.8]} 10... Ne4 {[%clk 0:02:26.6]} 11.
Nxe4 {[%clk 0:02:21.2]} 11... Bxe4 {[%clk 0:02:24.4]} 12. Bf3 {[%clk 0:02:15.1]}
12... Bxf3 {[%clk 0:02:19]} 13. Rxf3 {[%clk 0:02:06.9]} 13... Qb6 {[%clk
0:01:54]} 14. Nxc6 {[%clk 0:01:55.2]} 14... bxc6 {[%clk 0:01:44.7]} 15. c3
{[%clk 0:01:55.2]} 15... a5 {[%clk 0:01:40]} 16. Qe2 {[%clk 0:01:51.1]} 16... e6
{[%clk 0:01:39.6]} 17. g4 {[%clk 0:01:43]} 17... a4 {[%clk 0:01:35.2]} 18. Be3
{[%clk 0:01:41.5]} 18... Qa6 {[%clk 0:01:27.2]} 19. Qd2 {[%clk 0:01:34.6]} 19...
Rab8 {[%clk 0:01:15.2]} 20. f5 {[%clk 0:01:31.5]} 20... exf5 {[%clk 0:01:08.7]}
21. gxf5 {[%clk 0:01:31.7]} 21... Rfe8 {[%clk 0:01:03.3]} 22. f6 {[%clk
0:01:29.4]} 22... Bh8 {[%clk 0:00:59.6]} 23. Qf2 {[%clk 0:01:15.8]} 23... Re6
{[%clk 0:00:55.5]} 24. Rf1 {[%clk 0:01:14.4]} 24... Rbe8 {[%clk 0:00:55.2]} 25.
h4 {[%clk 0:01:07.3]} 25... Qd3 {[%clk 0:00:37.5]} 26. Re1 {[%clk 0:00:56.6]}
26... Re4 {[%clk 0:00:24.2]} 27. h5 {[%clk 0:00:47.9]} 27... Rg4+ {[%clk
0:00:23.3]} 28. Kh2 {[%clk 0:00:46.3]} 28... Ree4 {[%clk 0:00:22.2]} 29. hxg6
{[%clk 0:00:41.9]} 29... hxg6 {[%clk 0:00:20.4]} 30. Rh3 {[%clk 0:00:40.6]}
30... Re6 {[%clk 0:00:09.2]} 31. Qf3 {[%clk 0:00:30.6]} 31... Qe4 {[%clk
0:00:08.9]} 32. Bf2 {[%clk 0:00:20.6]} 32... Qxf3 {[%clk 0:00:07.1]} 33. Rxf3
{[%clk 0:00:19.8]} 33... Bxf6 {[%clk 0:00:07.1]} 34. Rxe6 {[%clk 0:00:17.6]}
34... fxe6 {[%clk 0:00:07.7]} 35. Rxf6 {[%clk 0:00:17.7]} 35... Re4 {[%clk
0:00:08]} 36. Rxg6+ {[%clk 0:00:17.5]} 36... Kf7 {[%clk 0:00:08.5]} 37. Rg2
{[%clk 0:00:17.2]} 37... Kf6 {[%clk 0:00:08.6]} 38. Bg3 {[%clk 0:00:17.5]} 38...
Kf5 {[%clk 0:00:09]} 39. Be5 {[%clk 0:00:17.7]} 39... Re3 {[%clk 0:00:08.8]} 40.
Rf2+ {[%clk 0:00:17.2]} 40... Ke4 {[%clk 0:00:09.3]} 41. Rf6 {[%clk 0:00:15.5]}
41... Re2+ {[%clk 0:00:09.4]} 42. Kg3 {[%clk 0:00:15.7]} 42... Rxb2 {[%clk
0:00:09.5]} 43. Rxe6 {[%clk 0:00:15.9]} 43... Rxa2 {[%clk 0:00:10.1]} 44. Rxc6
{[%clk 0:00:16.2]} 44... Rc2 {[%clk 0:00:10.5]} 45. Bd6 {[%clk 0:00:15.1]} 45...
Kd3 {[%clk 0:00:08.3]} 46. Bb4 {[%clk 0:00:15]} 46... a3 {[%clk 0:00:06.7]} 47.
Bxa3 {[%clk 0:00:13.5]} 47... Rxc3 {[%clk 0:00:07.6]} 48. Rxc3+ {[%clk
0:00:13.3]} 48... Kxc3 {[%clk 0:00:08.4]} 49. Bc5 {[%clk 0:00:13.6]} 49... Kd3
{[%clk 0:00:09.1]} 50. Kf4 {[%clk 0:00:13.7]} 1-0

[Event "Late-Titled-Tuesday-Blitz-February-06-2024"]
[Site "Chess.com"]
[Date "2024.02.06"]
[Round "10"]
[White "Akhayan"]
[Black "trriinu"]
[Result "1/2-1/2"]
[WhiteElo "2381"]
[BlackElo "2247"]
[TimeControl "180+1"]
[EndTime "15:55:07 PST"]
[Termination "Game drawn by repetition"]

1. e4 {[%clk 0:02:58.2]} 1... d5 {[%clk 0:02:58.2]} 2. exd5 {[%clk 0:02:57.9]}
2... Qxd5 {[%clk 0:02:59.1]} 3. Nc3 {[%clk 0:02:57.8]} 3... Qd6 {[%clk
0:02:39.6]} 4. d4 {[%clk 0:02:57.8]} 4... Nf6 {[%clk 0:02:38.7]} 5. Nf3 {[%clk
0:02:58]} 5... Nc6 {[%clk 0:02:39.2]} 6. g3 {[%clk 0:02:58.1]} 6... Bg4 {[%clk
0:02:38.9]} 7. Bg2 {[%clk 0:02:58.7]} 7... e6 {[%clk 0:02:34.1]} 8. O-O {[%clk
0:02:57.3]} 8... O-O-O {[%clk 0:02:33.9]} 9. Bf4 {[%clk 0:02:57.4]} 9... Qd7
{[%clk 0:02:33.2]} 10. Nb5 {[%clk 0:02:51.4]} 10... Nd5 {[%clk 0:02:33]} 11. Bg5
{[%clk 0:02:44]} 11... f6 {[%clk 0:02:30.1]} 12. Bd2 {[%clk 0:02:43.9]} 12... a6
{[%clk 0:02:24.6]} 13. Nc3 {[%clk 0:02:44]} 13... Nxd4 {[%clk 0:02:24.2]} 14. h3
{[%clk 0:02:14.6]} 14... Nxc3 {[%clk 0:01:46.7]} 15. Bxc3 {[%clk 0:01:47.9]}
15... Nxf3+ {[%clk 0:01:44.5]} 16. Bxf3 {[%clk 0:01:47.3]} 16... Qxd1 {[%clk
0:01:38.5]} 17. Bxd1 {[%clk 0:01:47.3]} 17... Bxh3 {[%clk 0:01:38.5]} 18. Re1
{[%clk 0:01:47.9]} 18... e5 {[%clk 0:01:36.3]} 19. Bf3 {[%clk 0:01:41.9]} 19...
Bf5 {[%clk 0:01:33.5]} 20. Rac1 {[%clk 0:01:37.6]} 20... Bc5 {[%clk 0:01:32.2]}
21. Kg2 {[%clk 0:01:36.7]} 21... Bd4 {[%clk 0:01:27.3]} 22. Bxd4 {[%clk
0:01:35.9]} 22... Rxd4 {[%clk 0:01:26.9]} 23. Re2 {[%clk 0:01:31.2]} 23... Rhd8
{[%clk 0:01:25.8]} 24. Rce1 {[%clk 0:01:30.6]} 24... Rd2 {[%clk 0:01:24.3]} 25.
c3 {[%clk 0:01:20.9]} 25... c5 {[%clk 0:00:37.7]} 26. g4 {[%clk 0:01:12.6]}
26... Bg6 {[%clk 0:00:35.4]} 27. a3 {[%clk 0:01:05.7]} 27... b5 {[%clk
0:00:34.6]} 28. a4 {[%clk 0:00:55.7]} 28... Rxe2 {[%clk 0:00:29.7]} 29. Rxe2
{[%clk 0:00:55.5]} 29... Kc7 {[%clk 0:00:29]} 30. a5 {[%clk 0:00:53.1]} 30...
Rd3 {[%clk 0:00:12.2]} 31. Ba8 {[%clk 0:00:39.8]} 31... Rd1 {[%clk 0:00:11.2]}
32. Bf3 {[%clk 0:00:38.1]} 32... Ra1 {[%clk 0:00:10]} 33. g5 {[%clk 0:00:37.6]}
33... Rxa5 {[%clk 0:00:09.6]} 34. gxf6 {[%clk 0:00:38]} 34... gxf6 {[%clk
0:00:10.1]} 35. Rd2 {[%clk 0:00:38]} 35... Ra1 {[%clk 0:00:08.9]} 36. Bg4 {[%clk
0:00:38.2]} 36... f5 {[%clk 0:00:09.2]} 37. Bf3 {[%clk 0:00:38]} 37... e4 {[%clk
0:00:09.5]} 38. Be2 {[%clk 0:00:38.8]} 38... Re1 {[%clk 0:00:08.2]} 39. Bf1
{[%clk 0:00:37.9]} 39... Rc1 {[%clk 0:00:07.8]} 40. Rd5 {[%clk 0:00:37.9]} 40...
Kc6 {[%clk 0:00:07.6]} 41. Re5 {[%clk 0:00:38.3]} 41... a5 {[%clk 0:00:07.4]}
42. Re6+ {[%clk 0:00:38.8]} 42... Kd7 {[%clk 0:00:06.1]} 43. Ra6 {[%clk
0:00:36.5]} 43... b4 {[%clk 0:00:06.4]} 44. Bb5+ {[%clk 0:00:35.9]} 44... Kc7
{[%clk 0:00:05.8]} 45. c4 {[%clk 0:00:34.3]} 45... Ra1 {[%clk 0:00:04.8]} 46.
Ra7+ {[%clk 0:00:33.8]} 46... Kd6 {[%clk 0:00:04.2]} 47. Ra6+ {[%clk 0:00:34.5]}
47... Ke5 {[%clk 0:00:04.3]} 48. Bd7 {[%clk 0:00:33.1]} 48... f4 {[%clk
0:00:04.1]} 49. Re6+ {[%clk 0:00:33.4]} 49... Kd4 {[%clk 0:00:04.3]} 50. Rd6+
{[%clk 0:00:33.6]} 50... Kxc4 {[%clk 0:00:04.4]} 51. Be6+ {[%clk 0:00:33.8]}
51... Kb5 {[%clk 0:00:03.7]} 52. Bd7+ {[%clk 0:00:34.1]} 52... Kc4 {[%clk
0:00:03.1]} 53. Be6+ {[%clk 0:00:34.7]} 53... Kb5 {[%clk 0:00:02.6]} 54. Bd7+
{[%clk 0:00:35.1]} 54... Kc4 {[%clk 0:00:02.7]} 1/2-1/2

[Event "Late-Titled-Tuesday-Blitz-February-06-2024"]
[Site "Chess.com"]
[Date "2024.02.06"]
[Round "10"]
[White "VitaliyChayka"]
[Black "HalfIsCrayfish"]
[Result "0-1"]
[WhiteElo "2452"]
[BlackElo "2590"]
[TimeControl "180+1"]
[EndTime "15:55:14 PST"]
[Termination "HalfIsCrayfish won by resignation"]

1. d4 {[%clk 0:03:00.9]} 1... Nf6 {[%clk 0:02:59.1]} 2. Bf4 {[%clk 0:03:01.4]}
2... b6 {[%clk 0:02:58.5]} 3. e3 {[%clk 0:03:02.1]} 3... Bb7 {[%clk 0:02:58.9]}
4. Nf3 {[%clk 0:03:02.8]} 4... g6 {[%clk 0:02:58.2]} 5. h3 {[%clk 0:03:02.8]}
5... Bg7 {[%clk 0:02:58.7]} 6. Be2 {[%clk 0:03:03.4]} 6... O-O {[%clk
0:02:59.4]} 7. O-O {[%clk 0:03:03.7]} 7... d6 {[%clk 0:03:00]} 8. a4 {[%clk
0:03:04.1]} 8... a6 {[%clk 0:02:59.7]} 9. c3 {[%clk 0:03:04.5]} 9... Nfd7 {[%clk
0:03:00]} 10. Nbd2 {[%clk 0:03:05]} 10... e5 {[%clk 0:03:00]} 11. Bh2 {[%clk
0:03:05.7]} 11... Nc6 {[%clk 0:02:59.2]} 12. Qb3 {[%clk 0:03:01.7]} 12... Qe7
{[%clk 0:02:57.9]} 13. Qa3 {[%clk 0:03:01]} 13... h6 {[%clk 0:02:55.2]} 14. dxe5
{[%clk 0:02:49.7]} 14... Ncxe5 {[%clk 0:02:53.9]} 15. Nxe5 {[%clk 0:02:50]}
15... Nxe5 {[%clk 0:02:50]} 16. Bxe5 {[%clk 0:02:47.9]} 16... Qxe5 {[%clk
0:02:44.6]} 17. Bf3 {[%clk 0:02:47.9]} 17... d5 {[%clk 0:02:37.9]} 18. a5 {[%clk
0:02:44.7]} 18... b5 {[%clk 0:02:35.6]} 19. Nb3 {[%clk 0:02:44.9]} 19... Rfd8
{[%clk 0:02:28.2]} 20. Nc5 {[%clk 0:02:44.6]} 20... Bf8 {[%clk 0:02:27.2]} 21.
b4 {[%clk 0:02:41.2]} 21... Bxc5 {[%clk 0:02:23.3]} 22. bxc5 {[%clk 0:02:42.1]}
22... c6 {[%clk 0:02:23.8]} 23. Rfd1 {[%clk 0:02:38.9]} 23... Re8 {[%clk
0:02:12.5]} 24. Rd4 {[%clk 0:02:37.9]} 24... f5 {[%clk 0:02:11.2]} 25. Qb4
{[%clk 0:02:38.2]} 25... Re7 {[%clk 0:02:09.8]} 26. Rad1 {[%clk 0:02:37.5]}
26... Rae8 {[%clk 0:02:10]} 27. Kf1 {[%clk 0:02:21.3]} 27... Kg7 {[%clk
0:02:03.5]} 28. Ke2 {[%clk 0:02:18.2]} 28... Rf8 {[%clk 0:01:58.2]} 29. Kd2
{[%clk 0:02:17.6]} 29... Bc8 {[%clk 0:01:50.4]} 30. Kc1 {[%clk 0:02:16.4]} 30...
Qf6 {[%clk 0:01:48.6]} 31. Kb2 {[%clk 0:02:10.5]} 31... Rfe8 {[%clk 0:01:46.4]}
32. Rg1 {[%clk 0:02:08]} 32... Be6 {[%clk 0:01:43.3]} 33. g4 {[%clk 0:02:04.1]}
33... fxg4 {[%clk 0:01:42.5]} 34. Rf4 {[%clk 0:02:04.6]} 34... Qh4 {[%clk
0:01:38.5]} 35. Bxg4 {[%clk 0:02:00.1]} 35... Bxg4 {[%clk 0:01:32.7]} 36. Rgxg4
{[%clk 0:01:45.4]} 36... Qh5 {[%clk 0:01:20.8]} 37. Qd4+ {[%clk 0:01:15.3]}
37... Qe5 {[%clk 0:01:20.2]} 38. Qd3 {[%clk 0:01:15.3]} 38... Re6 {[%clk
0:01:15.5]} 39. h4 {[%clk 0:01:15.4]} 39... Rf6 {[%clk 0:01:07]} 40. Rxf6 {[%clk
0:00:43.6]} 40... Qxf6 {[%clk 0:01:03.3]} 41. f4 {[%clk 0:00:36.5]} 41... Re4
{[%clk 0:00:58.5]} 42. h5 {[%clk 0:00:32.5]} 42... g5 {[%clk 0:00:58.5]} 43. Kb3
{[%clk 0:00:26.9]} 43... Qe6 {[%clk 0:00:47.5]} 44. Rg3 {[%clk 0:00:26.4]} 44...
d4+ {[%clk 0:00:45.8]} 45. Kc2 {[%clk 0:00:21]} 45... dxe3 {[%clk 0:00:43.1]}
46. fxg5 {[%clk 0:00:19.9]} 46... e2 {[%clk 0:00:13]} 47. gxh6+ {[%clk
0:00:17.7]} 47... Kh7 {[%clk 0:00:08.1]} 48. Re3 {[%clk 0:00:16.7]} 48... Qa2+
{[%clk 0:00:05.3]} 49. Kc1 {[%clk 0:00:17.3]} 49... Qa1+ {[%clk 0:00:04.1]} 50.
Kd2 {[%clk 0:00:17.1]} 50... e1=Q+ {[%clk 0:00:03.9]} 51. Rxe1 {[%clk
0:00:15.3]} 51... Qxe1+ {[%clk 0:00:04.8]} 52. Kc2 {[%clk 0:00:15.9]} 52... Qe2+
{[%clk 0:00:05.4]} 53. Qxe2 {[%clk 0:00:15]} 53... Rxe2+ {[%clk 0:00:06.3]} 54.
Kd3 {[%clk 0:00:15.4]} 54... Re5 {[%clk 0:00:06.9]} 0-1

[Event "Late-Titled-Tuesday-Blitz-February-06-2024"]
[Site "Chess.com"]
[Date "2024.02.06"]
[Round "10"]
[White "GeorgiosSouleidis"]
[Black "ritanovikova"]
[Result "1-0"]
[WhiteElo "2664"]
[BlackElo "2248"]
[TimeControl "180+1"]
[EndTime "15:55:16 PST"]
[Termination "GeorgiosSouleidis won by resignation"]

1. e4 {[%clk 0:03:00.9]} 1... d5 {[%clk 0:02:57.4]} 2. exd5 {[%clk 0:03:01]}
2... Qxd5 {[%clk 0:02:57.1]} 3. Nc3 {[%clk 0:03:01.1]} 3... Qd6 {[%clk 0:02:57]}
4. d4 {[%clk 0:03:01.1]} 4... Nf6 {[%clk 0:02:56.7]} 5. Nge2 {[%clk 0:03:01.7]}
5... c6 {[%clk 0:02:55.9]} 6. Bf4 {[%clk 0:03:01.4]} 6... Qb4 {[%clk 0:02:55.7]}
7. Bc7 {[%clk 0:02:46.3]} 7... Na6 {[%clk 0:02:52.1]} 8. a3 {[%clk 0:02:33.4]}
8... Qc4 {[%clk 0:02:44.5]} 9. Nf4 {[%clk 0:02:21.6]} 9... Qxc3+ {[%clk
0:02:23.4]} 10. bxc3 {[%clk 0:02:21.6]} 10... Nxc7 {[%clk 0:02:24.3]} 11. Bc4
{[%clk 0:02:18.4]} 11... e6 {[%clk 0:02:22.2]} 12. O-O {[%clk 0:02:18.2]} 12...
Bd6 {[%clk 0:02:22.1]} 13. Qf3 {[%clk 0:02:13.1]} 13... O-O {[%clk 0:02:20.7]}
14. Rfe1 {[%clk 0:02:12.7]} 14... Ncd5 {[%clk 0:02:18.9]} 15. Nxd5 {[%clk
0:02:07.5]} 15... exd5 {[%clk 0:02:18.5]} 16. Bd3 {[%clk 0:02:00.1]} 16... Be6
{[%clk 0:02:11.8]} 17. h3 {[%clk 0:01:59.9]} 17... Rfe8 {[%clk 0:02:08.1]} 18.
a4 {[%clk 0:02:00.4]} 18... Re7 {[%clk 0:02:08]} 19. a5 {[%clk 0:01:45]} 19...
a6 {[%clk 0:02:07.3]} 20. Rab1 {[%clk 0:01:37.5]} 20... Rae8 {[%clk 0:02:06.9]}
21. Ra1 {[%clk 0:01:14.7]} 21... Bc7 {[%clk 0:02:04.8]} 22. Qd1 {[%clk
0:01:10.4]} 22... Bg4 {[%clk 0:01:46.4]} 23. Qd2 {[%clk 0:00:59.4]} 23... Be6
{[%clk 0:01:34]} 24. Qc1 {[%clk 0:00:59.1]} 24... g6 {[%clk 0:01:26.7]} 25. Qb2
{[%clk 0:00:58.7]} 25... Bd8 {[%clk 0:01:23.9]} 26. Qb3 {[%clk 0:00:58.6]} 26...
Kg7 {[%clk 0:01:23.2]} 27. Re3 {[%clk 0:00:57.1]} 27... Nh5 {[%clk 0:01:19.9]}
28. c4 {[%clk 0:00:55.6]} 28... Nf4 {[%clk 0:01:18.6]} 29. Bf1 {[%clk
0:00:51.5]} 29... dxc4 {[%clk 0:01:08]} 30. Bxc4 {[%clk 0:00:52.4]} 30... Bd5
{[%clk 0:01:02.3]} 31. Rxe7 {[%clk 0:00:49.8]} 31... Rxe7 {[%clk 0:01:03.2]} 32.
Bxd5 {[%clk 0:00:50]} 32... Nxd5 {[%clk 0:01:01.1]} 33. c4 {[%clk 0:00:48.5]}
33... Nf4 {[%clk 0:01:00.3]} 34. Kf1 {[%clk 0:00:45.8]} 34... Ne6 {[%clk
0:00:56.9]} 35. d5 {[%clk 0:00:39.7]} 35... cxd5 {[%clk 0:00:52.4]} 36. cxd5
{[%clk 0:00:40.6]} 36... Nf4 {[%clk 0:00:48.5]} 37. Re1 {[%clk 0:00:32.2]} 37...
Rd7 {[%clk 0:00:44.2]} 38. Rd1 {[%clk 0:00:25.5]} 38... Bf6 {[%clk 0:00:40.2]}
39. d6 {[%clk 0:00:17.5]} 39... Ne6 {[%clk 0:00:39.9]} 40. Qd5 {[%clk
0:00:15.6]} 40... Bd8 {[%clk 0:00:37.8]} 41. g3 {[%clk 0:00:14.9]} 41... h5
{[%clk 0:00:36.9]} 42. h4 {[%clk 0:00:15.2]} 42... Bf6 {[%clk 0:00:36.2]} 43.
Rb1 {[%clk 0:00:13.6]} 43... Nd8 {[%clk 0:00:33.6]} 44. Rc1 {[%clk 0:00:12.6]}
44... Nc6 {[%clk 0:00:29.4]} 45. Rxc6 {[%clk 0:00:12.6]} 45... bxc6 {[%clk
0:00:29.5]} 46. Qxc6 {[%clk 0:00:13.5]} 46... Rd8 {[%clk 0:00:27.1]} 47. d7
{[%clk 0:00:11.5]} 47... Kf8 {[%clk 0:00:25.3]} 48. Qxf6 {[%clk 0:00:10.4]}
48... Rxd7 {[%clk 0:00:25.5]} 49. Qxa6 {[%clk 0:00:10.5]} 49... Kg7 {[%clk
0:00:25.5]} 50. Kg2 {[%clk 0:00:10.9]} 50... Re7 {[%clk 0:00:25.3]} 51. Qb6
{[%clk 0:00:11.2]} 51... Re6 {[%clk 0:00:25.4]} 52. Qxe6 {[%clk 0:00:10.5]}
52... fxe6 {[%clk 0:00:26.3]} 53. a6 {[%clk 0:00:11.4]} 1-0